[Event "Titled Tuesday Blitz October 11 Early 2022"]
[White "Tsaruk, Maksim"]
[Black "Evdokimov, Alexey"]
[WhiteFideId "13511173"]
[BlackFideId "24162450"]
[WhiteElo "2273"]
[BlackElo "2154"]
[Result "1/2-1/2"]
[Round "01"]
[TimeControl "180+1"]
[Date "2022.10.12"]
[WhiteClock "0:01:16"]
[BlackClock "0:00:52"]

1. e4 {[%clk 0:02:58]}  c6 {[%clk 0:02:59]} 2. d4 {[%clk 0:02:58]}  d5 {[%clk 0:03:00]} 3. Nd2 {[%clk 0:02:59]}  dxe4 {[%clk 0:03:00]} 4. Nxe4 {[%clk 0:03:00]}  Nf6 {[%clk 0:03:01]} 5. Nxf6+ {[%clk 0:02:49]}  exf6 {[%clk 0:03:01]} 6. c3 {[%clk 0:02:50]}  Bd6 {[%clk 0:03:00]} 7. Bd3 {[%clk 0:02:50]}  Na6 {[%clk 0:02:55]} 8. Qc2 {[%clk 0:02:51]}  h5 {[%clk 0:02:47]} 9. Ne2 {[%clk 0:02:52]}  Nc7 {[%clk 0:02:46]} 10. Bf4 {[%clk 0:02:52]}  Nd5 {[%clk 0:02:44]} 11. Bxd6 {[%clk 0:02:52]}  Qxd6 {[%clk 0:02:44]} 12. O-O-O {[%clk 0:02:52]}  O-O {[%clk 0:02:36]} 13. g3 {[%clk 0:02:53]}  b5 {[%clk 0:02:30]} 14. Be4 {[%clk 0:02:52]}  a5 {[%clk 0:02:28]} 15. Kb1 {[%clk 0:02:40]}  a4 {[%clk 0:02:28]} 16. Bxd5 {[%clk 0:02:39]}  Qxd5 {[%clk 0:02:17]} 17. Nf4 {[%clk 0:02:39]}  Bf5 {[%clk 0:01:59]} 18. Nxd5 {[%clk 0:02:38]}  Bxc2+ {[%clk 0:01:59]} 19. Kxc2 {[%clk 0:02:39]}  cxd5 {[%clk 0:02:00]} 20. Rhe1 {[%clk 0:02:32]}  Rfe8 {[%clk 0:02:00]} 21. Kd2 {[%clk 0:02:26]}  Kf8 {[%clk 0:01:59]} 22. Rxe8+ {[%clk 0:02:26]}  Kxe8 {[%clk 0:01:58]} 23. Re1+ {[%clk 0:02:27]}  Kd7 {[%clk 0:01:59]} 24. Kd3 {[%clk 0:02:27]}  Kd6 {[%clk 0:01:57]} 25. Re3 {[%clk 0:02:26]}  g6 {[%clk 0:01:55]} 26. h4 {[%clk 0:02:24]}  Rb8 {[%clk 0:01:52]} 27. Re2 {[%clk 0:02:19]}  Rc8 {[%clk 0:01:52]} 28. Ke3 {[%clk 0:02:16]}  a3 {[%clk 0:01:50]} 29. Kd3 {[%clk 0:02:16]}  axb2 {[%clk 0:01:47]} 30. Rxb2 {[%clk 0:02:17]}  Kc6 {[%clk 0:01:46]} 31. Re2 {[%clk 0:02:12]}  Kd6 {[%clk 0:01:43]} 32. Kc2 {[%clk 0:01:50]}  b4 {[%clk 0:01:42]} 33. Re3 {[%clk 0:01:50]}  Rc4 {[%clk 0:01:36]} 34. Kb3 {[%clk 0:01:47]}  bxc3 {[%clk 0:01:35]} 35. Rxc3 {[%clk 0:01:48]}  Rxd4 {[%clk 0:01:35]} 36. a4 {[%clk 0:01:49]}  Rd1 {[%clk 0:01:29]} 37. a5 {[%clk 0:01:40]}  Ra1 {[%clk 0:01:24]} 38. Kb4 {[%clk 0:01:38]}  d4 {[%clk 0:01:15]} 39. Rc8 {[%clk 0:01:37]}  Rb1+ {[%clk 0:00:55]} 40. Ka4 {[%clk 0:01:36]}  Ra1+ {[%clk 0:00:53]} 41. Kb5 {[%clk 0:01:36]}  Rb1+ {[%clk 0:00:52]} 42. Ka4 {[%clk 0:01:28]}  Ra1+ {[%clk 0:00:52]} 43. Kb4 {[%clk 0:01:26]}  Rb1+ {[%clk 0:00:52]} 44. Ka4 {[%clk 0:01:16]} 1/2-1/2


[Site "https://www.chess.com"]

[Event "Titled Tuesday Blitz October 11 Early 2022"]
[White "Ulziikhishigjargal, Ochirkhuyag"]
[Black "Ruge, Edison"]
[WhiteFideId "4903188"]
[BlackFideId "4401000"]
[WhiteElo "1920"]
[BlackElo "2175"]
[Result "1-0"]
[Round "01"]
[TimeControl "180+1"]
[Date "2022.10.12"]
[WhiteClock "0:01:47"]
[BlackClock "0:00:18"]

1. d4 {[%clk 0:03:00]}  Nf6 {[%clk 0:02:59]} 2. c4 {[%clk 0:03:00]}  g6 {[%clk 0:03:00]} 3. Nc3 {[%clk 0:02:59]}  Bg7 {[%clk 0:03:00]} 4. e4 {[%clk 0:02:57]}  d6 {[%clk 0:03:01]} 5. Nf3 {[%clk 0:02:56]}  Nc6 {[%clk 0:03:01]} 6. Be2 {[%clk 0:02:54]}  O-O {[%clk 0:03:00]} 7. O-O {[%clk 0:02:53]}  Bg4 {[%clk 0:02:59]} 8. Be3 {[%clk 0:02:52]}  e5 {[%clk 0:02:56]} 9. d5 {[%clk 0:02:52]}  Ne7 {[%clk 0:02:56]} 10. Qc2 {[%clk 0:02:50]}  h6 {[%clk 0:02:46]} 11. b4 {[%clk 0:02:48]}  a6 {[%clk 0:02:43]} 12. c5 {[%clk 0:02:46]}  Rc8 {[%clk 0:02:05]} 13. a4 {[%clk 0:02:44]}  Nh7 {[%clk 0:01:50]} 14. h3 {[%clk 0:02:43]}  Bxf3 {[%clk 0:01:49]} 15. Bxf3 {[%clk 0:02:44]}  f5 {[%clk 0:01:49]} 16. Rfd1 {[%clk 0:02:41]}  Ng5 {[%clk 0:01:49]} 17. Bxg5 {[%clk 0:02:40]}  hxg5 {[%clk 0:01:48]} 18. c6 {[%clk 0:02:34]}  b6 {[%clk 0:01:47]} 19. Ne2 {[%clk 0:02:29]}  Qe8 {[%clk 0:01:40]} 20. Ng3 {[%clk 0:02:24]}  Qf7 {[%clk 0:01:35]} 21. Qd3 {[%clk 0:02:23]}  Qf6 {[%clk 0:01:33]} 22. Qxa6 {[%clk 0:02:22]}  Kf7 {[%clk 0:01:20]} 23. Qe2 {[%clk 0:02:18]}  Ng8 {[%clk 0:01:20]} 24. a5 {[%clk 0:02:17]}  bxa5 {[%clk 0:01:19]} 25. bxa5 {[%clk 0:02:18]}  Nh6 {[%clk 0:01:19]} 26. a6 {[%clk 0:02:16]}  g4 {[%clk 0:01:19]} 27. hxg4 {[%clk 0:02:16]}  fxg4 {[%clk 0:01:17]} 28. Bxg4 {[%clk 0:02:15]}  Ra8 {[%clk 0:01:17]} 29. Be6+ {[%clk 0:02:14]}  Ke7 {[%clk 0:01:17]} 30. a7 {[%clk 0:02:14]}  Nf7 {[%clk 0:01:12]} 31. Rdb1 {[%clk 0:02:04]}  Ng5 {[%clk 0:01:11]} 32. Rb7 {[%clk 0:02:04]}  Nxe6 {[%clk 0:01:02]} 33. dxe6 {[%clk 0:02:05]}  Qxe6 {[%clk 0:00:56]} 34. Rxc7+ {[%clk 0:02:03]}  Kf6 {[%clk 0:00:55]} 35. Qf3+ {[%clk 0:01:57]}  Kg5 {[%clk 0:00:54]} 36. Qe3+ {[%clk 0:01:57]}  Kf6 {[%clk 0:00:53]} 37. Rb1 {[%clk 0:01:56]}  Rac8 {[%clk 0:00:33]} 38. Rxc8 {[%clk 0:01:52]}  Rxc8 {[%clk 0:00:29]} 39. Qa3 {[%clk 0:01:48]}  Ra8 {[%clk 0:00:20]} 40. Rb8 {[%clk 0:01:48]}  Rxa7 {[%clk 0:00:18]} 41. Qxa7 {[%clk 0:01:47]} 1-0


[Site "https://www.chess.com"]

[Event "Titled Tuesday Blitz October 11 Early 2022"]
[White "Vachylia, Andrii"]
[Black "Mihailidis, Anastasios"]
[WhiteFideId "14137224"]
[BlackFideId "4205588"]
[WhiteElo "2318"]
[BlackElo "2312"]
[Result "1-0"]
[Round "01"]
[TimeControl "180+1"]
[Date "2022.10.12"]
[WhiteClock "0:01:08"]
[BlackClock "0:00:02"]

1. e4 {[%clk 0:02:49]}  c5 {[%clk 0:02:59]} 2. Nf3 {[%clk 0:02:48]}  d6 {[%clk 0:02:58]} 3. d4 {[%clk 0:02:49]}  cxd4 {[%clk 0:02:59]} 4. Nxd4 {[%clk 0:02:50]}  Nf6 {[%clk 0:02:59]} 5. Nc3 {[%clk 0:02:49]}  g6 {[%clk 0:02:58]} 6. f3 {[%clk 0:02:44]}  Bg7 {[%clk 0:02:57]} 7. Be3 {[%clk 0:02:44]}  O-O {[%clk 0:02:57]} 8. Qd2 {[%clk 0:02:45]}  Nc6 {[%clk 0:02:58]} 9. O-O-O {[%clk 0:02:45]}  d5 {[%clk 0:02:58]} 10. exd5 {[%clk 0:02:43]}  Nxd5 {[%clk 0:02:57]} 11. Nxc6 {[%clk 0:02:44]}  bxc6 {[%clk 0:02:57]} 12. Bd4 {[%clk 0:02:44]}  Nxc3 {[%clk 0:02:53]} 13. Qxc3 {[%clk 0:02:39]}  Bh6+ {[%clk 0:02:51]} 14. Be3 {[%clk 0:02:37]}  Bxe3+ {[%clk 0:02:51]} 15. Qxe3 {[%clk 0:02:38]}  Qb6 {[%clk 0:02:51]} 16. Qc3 {[%clk 0:02:29]}  Be6 {[%clk 0:02:45]} 17. h4 {[%clk 0:02:27]}  Rfd8 {[%clk 0:02:42]} 18. Bd3 {[%clk 0:02:25]}  Qd4 {[%clk 0:02:26]} 19. Qa3 {[%clk 0:02:07]}  c5 {[%clk 0:02:15]} 20. Be4 {[%clk 0:01:57]}  Qf2 {[%clk 0:01:58]} 21. Bxa8 {[%clk 0:01:55]}  Rxa8 {[%clk 0:01:54]} 22. Rd2 {[%clk 0:01:53]}  Qg3 {[%clk 0:01:46]} 23. Qxc5 {[%clk 0:01:52]}  Rc8 {[%clk 0:01:45]} 24. Qxa7 {[%clk 0:01:49]}  Bf5 {[%clk 0:01:39]} 25. Qxe7 {[%clk 0:01:38]}  Kg7 {[%clk 0:01:30]} 26. h5 {[%clk 0:01:33]}  Qf4 {[%clk 0:01:29]} 27. h6+ {[%clk 0:01:32]}  Kg8 {[%clk 0:01:21]} 28. c3 {[%clk 0:01:32]}  Be6 {[%clk 0:00:27]} 29. Kd1 {[%clk 0:01:26]}  Rf8 {[%clk 0:00:16]} 30. Rd8 {[%clk 0:01:13]}  Qa4+ {[%clk 0:00:14]} 31. Ke1 {[%clk 0:01:09]}  Qa8 {[%clk 0:00:02]} 32. Qxf8# {[%clk 0:01:08]} 1-0


[Site "https://www.chess.com"]

[Event "Titled Tuesday Blitz October 11 Early 2022"]
[White "Velikanov, Alexander"]
[Black "Urbina Perez, Juan Antonio"]
[WhiteFideId "2039290"]
[BlackFideId "2217368"]
[WhiteElo "2259"]
[BlackElo "2197"]
[Result "1-0"]
[Round "01"]
[TimeControl "180+1"]
[Date "2022.10.12"]
[WhiteClock "0:00:03"]
[BlackClock "0:00:17"]

1. d4 {[%clk 0:02:53]}  d5 {[%clk 0:02:58]} 2. Nc3 {[%clk 0:02:46]}  Nf6 {[%clk 0:02:56]} 3. Bf4 {[%clk 0:02:44]}  e6 {[%clk 0:02:52]} 4. Nb5 {[%clk 0:02:41]}  Na6 {[%clk 0:02:50]} 5. e3 {[%clk 0:02:39]}  c6 {[%clk 0:02:50]} 6. Nc3 {[%clk 0:02:39]}  Bb4 {[%clk 0:02:46]} 7. Bxa6 {[%clk 0:02:08]}  bxa6 {[%clk 0:02:47]} 8. Ne2 {[%clk 0:02:08]}  Qa5 {[%clk 0:02:36]} 9. O-O {[%clk 0:01:59]}  O-O {[%clk 0:02:36]} 10. a3 {[%clk 0:01:58]}  Be7 {[%clk 0:02:31]} 11. b4 {[%clk 0:01:51]}  Qb6 {[%clk 0:02:32]} 12. Na4 {[%clk 0:01:50]}  Qd8 {[%clk 0:02:29]} 13. Qe1 {[%clk 0:01:35]}  a5 {[%clk 0:02:26]} 14. bxa5 {[%clk 0:01:35]}  Ba6 {[%clk 0:02:26]} 15. f3 {[%clk 0:01:29]}  Nd7 {[%clk 0:02:24]} 16. Rf2 {[%clk 0:01:27]}  c5 {[%clk 0:02:22]} 17. Rb1 {[%clk 0:01:23]}  Bxe2 {[%clk 0:02:18]} 18. Rxe2 {[%clk 0:01:24]}  cxd4 {[%clk 0:02:18]} 19. exd4 {[%clk 0:01:25]}  Bxa3 {[%clk 0:02:16]} 20. Qc3 {[%clk 0:01:04]}  Be7 {[%clk 0:02:07]} 21. Bc7 {[%clk 0:01:01]}  Qc8 {[%clk 0:02:03]} 22. Qc6 {[%clk 0:01:01]}  Nb8 {[%clk 0:01:54]} 23. Qxa8 {[%clk 0:00:58]}  Qxc7 {[%clk 0:01:54]} 24. Qb7 {[%clk 0:00:33]}  Qc4 {[%clk 0:01:49]} 25. Qb5 {[%clk 0:00:31]}  Qxd4+ {[%clk 0:01:49]} 26. Kh1 {[%clk 0:00:31]}  a6 {[%clk 0:01:38]} 27. Qb3 {[%clk 0:00:31]}  Nc6 {[%clk 0:01:34]} 28. Nb6 {[%clk 0:00:12]}  Nxa5 {[%clk 0:01:31]} 29. Qa4 {[%clk 0:00:12]}  Qxa4 {[%clk 0:01:17]} 30. Nxa4 {[%clk 0:00:13]}  Nc4 {[%clk 0:01:17]} 31. Rb7 {[%clk 0:00:12]}  Bd6 {[%clk 0:01:14]} 32. g3 {[%clk 0:00:12]}  g6 {[%clk 0:01:13]} 33. Kg2 {[%clk 0:00:12]}  Rc8 {[%clk 0:01:13]} 34. Nb6 {[%clk 0:00:09]}  Rc6 {[%clk 0:01:10]} 35. Nxc4 {[%clk 0:00:07]}  Rxc4 {[%clk 0:01:11]} 36. Rb6 {[%clk 0:00:06]}  Bb4 {[%clk 0:01:05]} 37. Rxa6 {[%clk 0:00:06]}  Bc3 {[%clk 0:01:03]} 38. Ra8+ {[%clk 0:00:06]}  Kg7 {[%clk 0:01:03]} 39. Ra2 {[%clk 0:00:07]}  d4 {[%clk 0:01:03]} 40. Ra6 {[%clk 0:00:07]}  Rc5 {[%clk 0:01:03]} 41. Ra7 {[%clk 0:00:07]}  e5 {[%clk 0:01:03]} 42. Rb7 {[%clk 0:00:07]}  Kf6 {[%clk 0:01:00]} 43. Rb6+ {[%clk 0:00:07]}  Kg7 {[%clk 0:00:59]} 44. Rb7 {[%clk 0:00:08]}  h5 {[%clk 0:00:58]} 45. h3 {[%clk 0:00:05]}  Ra5 {[%clk 0:00:57]} 46. Re7 {[%clk 0:00:05]}  Kf6 {[%clk 0:00:57]} 47. Rc7 {[%clk 0:00:05]}  Ra6 {[%clk 0:00:55]} 48. Rc4 {[%clk 0:00:05]}  Re6 {[%clk 0:00:53]} 49. Rc8 {[%clk 0:00:04]}  Kg7 {[%clk 0:00:53]} 50. Ra8 {[%clk 0:00:04]}  f5 {[%clk 0:00:53]} 51. Ra4 {[%clk 0:00:05]}  e4 {[%clk 0:00:52]} 52. Ra7+ {[%clk 0:00:05]}  Kf6 {[%clk 0:00:51]} 53. Ra4 {[%clk 0:00:06]}  g5 {[%clk 0:00:47]} 54. Ra2 {[%clk 0:00:03]}  g4 {[%clk 0:00:40]} 55. hxg4 {[%clk 0:00:03]}  hxg4 {[%clk 0:00:39]} 56. fxg4 {[%clk 0:00:03]}  fxg4 {[%clk 0:00:40]} 57. Ra4 {[%clk 0:00:03]}  Re5 {[%clk 0:00:36]} 58. Ra8 {[%clk 0:00:04]}  Kf5 {[%clk 0:00:36]} 59. Rf8+ {[%clk 0:00:04]}  Kg6 {[%clk 0:00:34]} 60. Rf4 {[%clk 0:00:05]}  e3 {[%clk 0:00:23]} 61. Rxg4+ {[%clk 0:00:05]}  Kh5 {[%clk 0:00:22]} 62. Rf4 {[%clk 0:00:06]}  Ra5 {[%clk 0:00:20]} 63. Kf3 {[%clk 0:00:06]}  Ra1 {[%clk 0:00:20]} 64. Ke4 {[%clk 0:00:06]}  Rd1 {[%clk 0:00:18]} 65. Kf5 {[%clk 0:00:04]}  Rg1 {[%clk 0:00:17]} 66. Rh2# {[%clk 0:00:03]} 1-0


[Site "https://www.chess.com"]

[Event "Titled Tuesday Blitz October 11 Early 2022"]
[White "Vignesh, N R"]
[Black "Boraso, Alessio"]
[WhiteFideId "25012215"]
[BlackFideId "848077"]
[WhiteElo "2386"]
[BlackElo "2286"]
[Result "0-1"]
[Round "01"]
[TimeControl "180+1"]
[Date "2022.10.12"]
[WhiteClock "0:00:01"]
[BlackClock "0:00:04"]

1. e4 {[%clk 0:02:55]}  c5 {[%clk 0:02:59]} 2. Nf3 {[%clk 0:02:54]}  Nc6 {[%clk 0:03:00]} 3. b3 {[%clk 0:02:49]}  e5 {[%clk 0:02:56]} 4. Bb2 {[%clk 0:02:44]}  d6 {[%clk 0:02:57]} 5. g3 {[%clk 0:02:39]}  Be7 {[%clk 0:02:57]} 6. Bg2 {[%clk 0:02:38]}  Nf6 {[%clk 0:02:58]} 7. O-O {[%clk 0:02:38]}  O-O {[%clk 0:02:57]} 8. Re1 {[%clk 0:02:34]}  Be6 {[%clk 0:02:55]} 9. c3 {[%clk 0:02:33]}  Qd7 {[%clk 0:02:49]} 10. d4 {[%clk 0:02:33]}  Bh3 {[%clk 0:02:43]} 11. Na3 {[%clk 0:02:24]}  Rfe8 {[%clk 0:02:32]} 12. Nc4 {[%clk 0:02:21]}  Bf8 {[%clk 0:02:31]} 13. dxc5 {[%clk 0:02:09]}  dxc5 {[%clk 0:02:30]} 14. Qe2 {[%clk 0:02:02]}  Bxg2 {[%clk 0:02:14]} 15. Kxg2 {[%clk 0:02:03]}  Rad8 {[%clk 0:02:11]} 16. Rad1 {[%clk 0:01:59]}  Qe6 {[%clk 0:02:11]} 17. a4 {[%clk 0:01:57]}  h6 {[%clk 0:02:06]} 18. h3 {[%clk 0:01:56]}  g6 {[%clk 0:01:51]} 19. Qe3 {[%clk 0:01:50]}  b6 {[%clk 0:01:48]} 20. Ba3 {[%clk 0:01:46]}  Bg7 {[%clk 0:01:37]} 21. Qe2 {[%clk 0:01:40]}  Nh5 {[%clk 0:01:28]} 22. Rxd8 {[%clk 0:01:33]}  Rxd8 {[%clk 0:01:27]} 23. Rd1 {[%clk 0:01:33]}  Qe7 {[%clk 0:01:17]} 24. Rd5 {[%clk 0:01:31]}  Nf6 {[%clk 0:00:54]} 25. Rxd8+ {[%clk 0:01:07]}  Qxd8 {[%clk 0:00:55]} 26. Ncxe5 {[%clk 0:00:56]}  Nxe5 {[%clk 0:00:54]} 27. Nxe5 {[%clk 0:00:54]}  Qe7 {[%clk 0:00:54]} 28. f4 {[%clk 0:00:53]}  Nh5 {[%clk 0:00:35]} 29. Ng4 {[%clk 0:00:49]}  f5 {[%clk 0:00:22]} 30. Nf2 {[%clk 0:00:46]}  Kh7 {[%clk 0:00:17]} 31. e5 {[%clk 0:00:45]}  Nf6 {[%clk 0:00:09]} 32. c4 {[%clk 0:00:39]}  Ne8 {[%clk 0:00:06]} 33. h4 {[%clk 0:00:32]}  Nc7 {[%clk 0:00:07]} 34. h5 {[%clk 0:00:25]}  Ne6 {[%clk 0:00:06]} 35. hxg6+ {[%clk 0:00:16]}  Kxg6 {[%clk 0:00:07]} 36. Bb2 {[%clk 0:00:14]}  h5 {[%clk 0:00:07]} 37. Qf3 {[%clk 0:00:11]}  Bh6 {[%clk 0:00:05]} 38. Nd1 {[%clk 0:00:07]}  h4 {[%clk 0:00:05]} 39. Ne3 {[%clk 0:00:02]}  Qd7 {[%clk 0:00:05]} 40. Qd5 {[%clk 0:00:01]}  Qf7 {[%clk 0:00:04]} 0-1


[Site "https://www.chess.com"]

[Event "Titled Tuesday Blitz October 11 Early 2022"]
[White "Winterberg, Lukas"]
[Black "Pakleza, Zbigniew"]
[WhiteFideId "24622702"]
[BlackFideId "1119290"]
[WhiteElo "2349"]
[BlackElo "2411"]
[Result "0-1"]
[Round "01"]
[TimeControl "180+1"]
[Date "2022.10.12"]
[WhiteClock "0:00:07"]
[BlackClock "0:00:04"]

1. d4 {[%clk 0:02:59]}  d6 {[%clk 0:02:59]} 2. Nf3 {[%clk 0:02:55]}  Bg4 {[%clk 0:02:59]} 3. Nbd2 {[%clk 0:02:55]}  Nf6 {[%clk 0:02:58]} 4. h3 {[%clk 0:02:52]}  Bh5 {[%clk 0:02:57]} 5. e3 {[%clk 0:02:52]}  e6 {[%clk 0:02:56]} 6. b3 {[%clk 0:02:52]}  d5 {[%clk 0:02:53]} 7. Bb2 {[%clk 0:02:52]}  Be7 {[%clk 0:02:53]} 8. Be2 {[%clk 0:02:52]}  Nbd7 {[%clk 0:02:53]} 9. O-O {[%clk 0:02:52]}  O-O {[%clk 0:02:53]} 10. c4 {[%clk 0:02:53]}  c6 {[%clk 0:02:52]} 11. Ne5 {[%clk 0:02:49]}  Bxe2 {[%clk 0:02:52]} 12. Qxe2 {[%clk 0:02:50]}  a5 {[%clk 0:02:47]} 13. f4 {[%clk 0:02:46]}  a4 {[%clk 0:02:37]} 14. g4 {[%clk 0:02:37]}  Nxe5 {[%clk 0:02:32]} 15. fxe5 {[%clk 0:02:16]}  Nd7 {[%clk 0:02:32]} 16. e4 {[%clk 0:02:09]}  Qa5 {[%clk 0:02:09]} 17. exd5 {[%clk 0:01:47]}  cxd5 {[%clk 0:02:06]} 18. cxd5 {[%clk 0:00:58]}  Qxd5 {[%clk 0:01:58]} 19. Qf3 {[%clk 0:00:46]}  Nb6 {[%clk 0:01:52]} 20. Qxd5 {[%clk 0:00:40]}  Nxd5 {[%clk 0:01:53]} 21. bxa4 {[%clk 0:00:40]}  Rxa4 {[%clk 0:01:50]} 22. Nb3 {[%clk 0:00:36]}  Rfa8 {[%clk 0:01:46]} 23. Rfc1 {[%clk 0:00:34]}  h6 {[%clk 0:01:34]} 24. a3 {[%clk 0:00:30]}  Bxa3 {[%clk 0:01:27]} 25. Bxa3 {[%clk 0:00:31]}  Rxa3 {[%clk 0:01:28]} 26. Rxa3 {[%clk 0:00:25]}  Rxa3 {[%clk 0:01:29]} 27. Nc5 {[%clk 0:00:23]}  Rxh3 {[%clk 0:01:20]} 28. Nd7 {[%clk 0:00:17]}  g5 {[%clk 0:01:05]} 29. Kf2 {[%clk 0:00:16]}  b5 {[%clk 0:01:00]} 30. Rc8+ {[%clk 0:00:13]}  Kg7 {[%clk 0:01:01]} 31. Rb8 {[%clk 0:00:13]}  b4 {[%clk 0:01:00]} 32. Nc5 {[%clk 0:00:14]}  h5 {[%clk 0:00:37]} 33. Rb7 {[%clk 0:00:12]}  Kg6 {[%clk 0:00:36]} 34. gxh5+ {[%clk 0:00:11]}  Rxh5 {[%clk 0:00:37]} 35. Nd7 {[%clk 0:00:07]}  Rh4 {[%clk 0:00:33]} 36. Nf8+ {[%clk 0:00:07]}  Kh6 {[%clk 0:00:17]} 37. Rxf7 {[%clk 0:00:07]}  Rf4+ {[%clk 0:00:17]} 38. Rxf4 {[%clk 0:00:07]}  Nxf4 {[%clk 0:00:18]} 39. Ke3 {[%clk 0:00:04]}  b3 {[%clk 0:00:11]} 40. Kd2 {[%clk 0:00:03]}  g4 {[%clk 0:00:12]} 41. d5 {[%clk 0:00:04]}  exd5 {[%clk 0:00:07]} 42. e6 {[%clk 0:00:04]}  Kg7 {[%clk 0:00:06]} 43. e7 {[%clk 0:00:03]}  Kf7 {[%clk 0:00:07]} 44. Nd7 {[%clk 0:00:02]}  Kxe7 {[%clk 0:00:04]} 45. Ne5 {[%clk 0:00:03]}  g3 {[%clk 0:00:04]} 46. Kc3 {[%clk 0:00:03]}  g2 {[%clk 0:00:04]} 47. Nf3 {[%clk 0:00:03]}  Kf6 {[%clk 0:00:04]} 48. Kxb3 {[%clk 0:00:04]}  Kf5 {[%clk 0:00:04]} 49. Kc3 {[%clk 0:00:05]}  Ke4 {[%clk 0:00:05]} 50. Ng1 {[%clk 0:00:05]}  Ke3 {[%clk 0:00:05]} 51. Kc2 {[%clk 0:00:05]}  d4 {[%clk 0:00:05]} 52. Kd1 {[%clk 0:00:05]}  d3 {[%clk 0:00:05]} 53. Ke1 {[%clk 0:00:06]}  d2+ {[%clk 0:00:04]} 54. Kd1 {[%clk 0:00:07]}  Nd3 {[%clk 0:00:04]} 55. Nh3 {[%clk 0:00:06]}  Nf2+ {[%clk 0:00:04]} 56. Kc2 {[%clk 0:00:07]}  Nxh3 {[%clk 0:00:04]} 0-1


[Site "https://www.chess.com"]

[Event "Titled Tuesday Blitz October 11 Early 2022"]
[White "Yeletsky, Ivan"]
[Black "Hanley, Craig A"]
[WhiteFideId "24180327"]
[BlackFideId "408514"]
[WhiteElo "2391"]
[BlackElo "2439"]
[Result "1-0"]
[Round "01"]
[TimeControl "180+1"]
[Date "2022.10.12"]
[WhiteClock "0:00:17"]
[BlackClock "0:00:05"]

1. Nf3 {[%clk 0:02:57]}  Nf6 {[%clk 0:02:59]} 2. g3 {[%clk 0:02:57]}  g6 {[%clk 0:03:00]} 3. Bg2 {[%clk 0:02:58]}  Bg7 {[%clk 0:03:00]} 4. d3 {[%clk 0:02:58]}  d5 {[%clk 0:02:59]} 5. O-O {[%clk 0:02:59]}  O-O {[%clk 0:02:58]} 6. Bf4 {[%clk 0:02:59]}  Bg4 {[%clk 0:02:48]} 7. Nbd2 {[%clk 0:02:57]}  Re8 {[%clk 0:02:42]} 8. Ne5 {[%clk 0:02:48]}  Bc8 {[%clk 0:02:34]} 9. e4 {[%clk 0:02:28]}  c6 {[%clk 0:02:23]} 10. Nef3 {[%clk 0:02:24]}  Nh5 {[%clk 0:02:09]} 11. Be5 {[%clk 0:02:22]}  Nf6 {[%clk 0:01:52]} 12. Bc3 {[%clk 0:02:08]}  Nbd7 {[%clk 0:01:30]} 13. e5 {[%clk 0:02:07]}  Ng4 {[%clk 0:01:30]} 14. d4 {[%clk 0:01:48]}  f6 {[%clk 0:01:04]} 15. Re1 {[%clk 0:01:37]}  Nf8 {[%clk 0:00:47]} 16. b3 {[%clk 0:01:27]}  a5 {[%clk 0:00:46]} 17. a4 {[%clk 0:01:26]}  Nh6 {[%clk 0:00:46]} 18. Bb2 {[%clk 0:01:26]}  Bg4 {[%clk 0:00:44]} 19. Qc1 {[%clk 0:01:25]}  Qd7 {[%clk 0:00:43]} 20. c4 {[%clk 0:01:25]}  Rad8 {[%clk 0:00:41]} 21. Ba3 {[%clk 0:01:13]}  Bh3 {[%clk 0:00:32]} 22. Qc3 {[%clk 0:01:07]}  Bxg2 {[%clk 0:00:31]} 23. Kxg2 {[%clk 0:01:07]}  b6 {[%clk 0:00:31]} 24. Rac1 {[%clk 0:01:03]}  Nf5 {[%clk 0:00:28]} 25. cxd5 {[%clk 0:01:01]}  cxd5 {[%clk 0:00:21]} 26. Qc6 {[%clk 0:01:01]}  Ne6 {[%clk 0:00:15]} 27. Bb2 {[%clk 0:00:53]}  Kf7 {[%clk 0:00:12]} 28. Qxb6 {[%clk 0:00:47]}  Rb8 {[%clk 0:00:12]} 29. Qxa5 {[%clk 0:00:47]}  h5 {[%clk 0:00:12]} 30. Qc3 {[%clk 0:00:42]}  Bh6 {[%clk 0:00:12]} 31. Qc6 {[%clk 0:00:34]}  Qxc6 {[%clk 0:00:09]} 32. Rxc6 {[%clk 0:00:35]}  g5 {[%clk 0:00:09]} 33. Rxe6 {[%clk 0:00:25]}  Kxe6 {[%clk 0:00:09]} 34. exf6+ {[%clk 0:00:26]}  Kxf6 {[%clk 0:00:10]} 35. Ne5 {[%clk 0:00:27]}  g4 {[%clk 0:00:10]} 36. Nd7+ {[%clk 0:00:23]}  Kf7 {[%clk 0:00:10]} 37. Nxb8 {[%clk 0:00:24]}  Bxd2 {[%clk 0:00:10]} 38. Re2 {[%clk 0:00:24]}  Rxb8 {[%clk 0:00:10]} 39. Rxd2 {[%clk 0:00:24]}  Rxb3 {[%clk 0:00:11]} 40. Re2 {[%clk 0:00:19]}  Rb4 {[%clk 0:00:11]} 41. Bc3 {[%clk 0:00:18]}  Rxa4 {[%clk 0:00:11]} 42. Rd2 {[%clk 0:00:16]}  e6 {[%clk 0:00:11]} 43. h3 {[%clk 0:00:15]}  Rc4 {[%clk 0:00:11]} 44. Rd3 {[%clk 0:00:16]}  Kf6 {[%clk 0:00:11]} 45. h4 {[%clk 0:00:16]}  Nd6 {[%clk 0:00:11]} 46. Bd2 {[%clk 0:00:16]}  Ne4 {[%clk 0:00:11]} 47. Bf4 {[%clk 0:00:17]}  Rc2 {[%clk 0:00:10]} 48. Be3 {[%clk 0:00:17]}  Nd6 {[%clk 0:00:10]} 49. Rb3 {[%clk 0:00:16]}  Nc4 {[%clk 0:00:10]} 50. Bf4 {[%clk 0:00:17]}  Kf5 {[%clk 0:00:11]} 51. Rb7 {[%clk 0:00:16]}  Ke4 {[%clk 0:00:10]} 52. Re7 {[%clk 0:00:16]}  Kf5 {[%clk 0:00:10]} 53. Rh7 {[%clk 0:00:16]}  Nb2 {[%clk 0:00:09]} 54. Rxh5+ {[%clk 0:00:16]}  Kg6 {[%clk 0:00:09]} 55. Rg5+ {[%clk 0:00:16]}  Kf6 {[%clk 0:00:10]} 56. Rxg4 {[%clk 0:00:16]}  Nc4 {[%clk 0:00:10]} 57. h5 {[%clk 0:00:15]}  Ra2 {[%clk 0:00:09]} 58. h6 {[%clk 0:00:15]}  Ra7 {[%clk 0:00:09]} 59. Rh4 {[%clk 0:00:11]}  Rh7 {[%clk 0:00:10]} 60. Kf3 {[%clk 0:00:12]}  Kg6 {[%clk 0:00:10]} 61. Ke2 {[%clk 0:00:13]}  Nb6 {[%clk 0:00:07]} 62. Rg4+ {[%clk 0:00:14]}  Kf6 {[%clk 0:00:07]} 63. Rg7 {[%clk 0:00:14]}  Rxg7 {[%clk 0:00:05]} 64. Be5+ {[%clk 0:00:15]}  Kf7 {[%clk 0:00:06]} 65. hxg7 {[%clk 0:00:15]}  Nc4 {[%clk 0:00:07]} 66. f4 {[%clk 0:00:15]}  Nb6 {[%clk 0:00:06]} 67. Kd3 {[%clk 0:00:15]}  Nc8 {[%clk 0:00:06]} 68. g4 {[%clk 0:00:16]}  Ne7 {[%clk 0:00:07]} 69. Ke3 {[%clk 0:00:16]}  Kg6 {[%clk 0:00:07]} 70. Kf3 {[%clk 0:00:17]}  Ng8 {[%clk 0:00:06]} 71. Kg3 {[%clk 0:00:16]}  Nh6 {[%clk 0:00:06]} 72. Kf3 {[%clk 0:00:13]}  Ng8 {[%clk 0:00:06]} 73. Ke3 {[%clk 0:00:10]}  Nh6 {[%clk 0:00:06]} 74. g5 {[%clk 0:00:11]}  Ng8 {[%clk 0:00:06]} 75. Kd3 {[%clk 0:00:12]}  Kf5 {[%clk 0:00:06]} 76. Kc3 {[%clk 0:00:12]}  Kg6 {[%clk 0:00:07]} 77. Kb4 {[%clk 0:00:13]}  Kf7 {[%clk 0:00:07]} 78. Kc5 {[%clk 0:00:14]}  Ne7 {[%clk 0:00:08]} 79. Kd6 {[%clk 0:00:15]}  Nf5+ {[%clk 0:00:09]} 80. Kd7 {[%clk 0:00:16]}  Ne3 {[%clk 0:00:05]} 81. g8=Q+ {[%clk 0:00:16]}  Kxg8 {[%clk 0:00:06]} 82. Kxe6 {[%clk 0:00:17]}  Kh7 {[%clk 0:00:05]} 83. f5 {[%clk 0:00:17]} 1-0


[Site "https://www.chess.com"]